[Event "SS Manhem Chess Week 2022: IM Tournament"]
[Site "Schackcentrum, Vegagatan 20, Gothenburg, Sweden"]
[Date "2022.08.07"]
[Round "3.5"]
[White "Ernst, Thomas"]
[Black "Olsson, William"]
[Result "1-0"]
[TimeControl "90 minutes for 40 moves + 30 minutes for the rest of the game + 30 seconds per move from move one."]
[WhiteTitle "GM"]
[BlackTitle "FM"]
[WhiteFideId "1700065"]
[BlackFideId "1741721"]
[WhiteElo "2323"]
[BlackElo "2311"]

1. e4 {[%clk 01:30:56]} {[%emt 00:00:03]} c5 {[%clk 01:30:57]} {[%emt
00:00:03]} 2. Nf3 {[%clk 01:31:17]} {[%emt 00:00:09]} d6 {[%clk 01:31:22]}
{[%emt 00:00:06]} 3. d4 {[%clk 01:31:40]} {[%emt 00:00:07]} cxd4 {[%clk
01:31:47]} {[%emt 00:00:05]} 4. Nxd4 {[%clk 01:32:07]} {[%emt 00:00:04]} Nf6
{[%clk 01:32:13]} {[%emt 00:00:05]} 5. Nc3 {[%clk 01:32:30]} {[%emt 00:00:06]}
g6 {[%clk 01:32:40]} {[%emt 00:00:03]} 6. Be3 {[%clk 01:32:53]} {[%emt
00:00:07]} Bg7 {[%clk 01:33:06]} {[%emt 00:00:04]} 7. f3 {[%clk 01:33:14]}
{[%emt 00:00:08]} O-O {[%clk 01:33:30]} {[%emt 00:00:06]} 8. Qd2 {[%clk
01:33:33]} {[%emt 00:00:12]} Nc6 {[%clk 01:33:57]} {[%emt 00:00:05]} 9. O-O-O
{[%clk 01:33:48]} {[%emt 00:00:13]} d5 {[%clk 01:34:24]} {[%emt 00:00:04]} 10.
exd5 {[%clk 01:34:05]} {[%emt 00:00:13]} Nxd5 {[%clk 01:34:44]} {[%emt
00:00:10]} 11. Nxc6 {[%clk 01:34:21]} {[%emt 00:00:14]} bxc6 {[%clk 01:35:10]}
{[%emt 00:00:04]} 12. Bd4 {[%clk 01:34:37]} {[%emt 00:00:13]} Bxd4 {[%clk
01:35:38]} {[%emt 00:00:04]} 13. Qxd4 {[%clk 01:34:55]} {[%emt 00:00:11]} Qb6
{[%clk 01:36:00]} {[%emt 00:00:07]} 14. Na4 {[%clk 01:32:53]} {[%emt 00:02:32]}
Qa5 {[%clk 01:32:16]} {[%emt 00:04:14]} 15. b3 {[%clk 01:32:14]} {[%emt
00:01:08]} Rb8 {[%clk 01:27:43]} {[%emt 00:05:03]} 16. Qc5 {[%emt 00:05:56]}
Qb4 {[%clk 01:06:57]} {[%emt 00:21:14]} 17. Qxb4 {[%clk 01:22:52]} {[%emt
00:04:29]} Rxb4 {[%clk 01:07:06]} {[%emt 00:00:20]} 18. c4 {[%clk 01:12:43]}
{[%emt 00:10:39]} Ne3 {[%clk 01:03:28]} {[%emt 00:04:10]} 19. Re1 {[%clk
01:12:52]} {[%emt 00:00:19]} Nf5 {[%clk 01:03:41]} {[%emt 00:00:17]} 20. Bd3
{[%clk 01:09:21]} {[%emt 00:03:59]} Rb7 {[%clk 01:02:05]} {[%emt 00:02:08]} 21.
Nc5 {[%clk 01:05:03]} {[%emt 00:04:48]} Rc7 {[%clk 01:02:20]} {[%emt 00:00:14]}
22. Bxf5 {[%clk 01:04:41]} {[%emt 00:00:52]} gxf5 {[%clk 01:01:14]} {[%emt
00:01:35]} 23. Rd1 {[%clk 01:04:05]} {[%emt 00:01:06]} Kg7 {[%clk 00:59:52]}
{[%emt 00:01:54]} 24. Rd2 {[%clk 01:02:15]} {[%emt 00:02:19]} e5 {[%clk
00:57:29]} {[%emt 00:02:54]} 25. Rhd1 {[%clk 01:00:16]} {[%emt 00:02:28]} Re8
{[%clk 00:55:02]} {[%emt 00:02:58]} 26. Rd6 {[%clk 00:56:14]} {[%emt 00:04:30]}
Be6 {[%clk 00:51:49]} {[%emt 00:03:44]} 27. Kc2 {[%clk 00:53:16]} {[%emt
00:03:28]} Kf6 {[%clk 00:49:04]} {[%emt 00:03:16]} 28. Kc3 {[%clk 00:51:35]}
{[%emt 00:02:10]} Ke7 {[%clk 00:48:39]} {[%emt 00:00:55]} 29. R1d2 {[%clk
00:42:48]} {[%emt 00:09:17]} a5 {[%clk 00:46:54]} {[%emt 00:02:16]} 30. Na4
{[%clk 00:32:38]} {[%emt 00:10:39]} h5 {[%clk 00:43:11]} {[%emt 00:04:13]} 31.
c5 {[%clk 00:32:13]} {[%emt 00:00:54]} Rg8 {[%clk 00:36:33]} {[%emt 00:07:05]}
32. Nb6 {[%clk 00:31:44]} {[%emt 00:01:01]} h4 {[%clk 00:34:56]} {[%emt
00:02:07]} 33. Nc4 {[%clk 00:28:33]} {[%emt 00:03:40]} Bxc4 {[%clk 00:33:50]}
{[%emt 00:01:38]} 34. Kxc4 {[%clk 00:28:54]} {[%emt 00:00:09]} Rg6 {[%clk
00:31:31]} {[%emt 00:02:49]} 35. a3 {[%clk 00:24:12]} {[%emt 00:05:12]} Re6
{[%clk 00:29:57]} {[%emt 00:02:03]} 36. b4 {[%clk 00:22:37]} {[%emt 00:02:05]}
axb4 {[%clk 00:30:23]} {[%emt 00:00:05]} 37. axb4 {[%clk 00:23:04]} {[%emt
00:00:04]} e4 {[%clk 00:29:12]} {[%emt 00:01:41]} 38. R6d4 {[%clk 00:17:29]}
{[%emt 00:06:02]} Ra7 {[%clk 00:25:57]} {[%emt 00:03:46]} 39. Re2 {[%clk
00:15:26]} {[%emt 00:02:31]} exf3 {[%clk 00:25:34]} {[%emt 00:00:55]} 40. Rxe6+
{[%clk 00:15:43]} {[%emt 00:00:14]} fxe6 {[%clk 00:24:26]} {[%emt 00:01:38]} 41.
gxf3 {[%clk 00:16:04]} {[%emt 00:00:09]} Ra3 {[%clk 00:23:34]} {[%emt
00:01:22]} 42. Rd6 {[%clk 00:12:11]} {[%emt 00:04:20]} h3 {[%clk 00:10:53]}
{[%emt 00:13:14]} 43. Rxc6 {[%clk 00:11:39]} {[%emt 00:01:02]} Ra2 {[%clk
00:11:18]} {[%emt 00:00:06]} 44. Rc7+ {[%clk 00:08:13]} {[%emt 00:03:53]} Kf6
{[%clk 00:11:20]} {[%emt 00:00:30]} 45. b5 {[%clk 00:07:49]} {[%emt 00:00:53]}
Rxh2 {[%clk 00:11:46]} {[%emt 00:00:04]} 46. Rh7 {[%clk 00:08:02]} {[%emt
00:00:15]} Rc2+ {[%clk 00:11:53]} {[%emt 00:00:26]} 47. Kb4 {[%clk 00:07:43]}
{[%emt 00:00:47]} h2 {[%clk 00:12:07]} {[%emt 00:00:18]} 48. c6 {[%clk
00:03:51]} {[%emt 00:04:21]} Ke5 {[%clk 00:09:59]} {[%emt 00:02:38]} 49. Ka5
{[%clk 00:04:11]} {[%emt 00:00:10]} Kd6 {[%clk 00:10:03]} {[%emt 00:00:27]} 50.
Kb6 {[%clk 00:04:17]} {[%emt 00:00:23]} e5 {[%clk 00:10:24]} {[%emt 00:00:10]}
51. Rh6 {[%clk 00:02:48]} {[%emt 00:01:56]} Ke7 {[%clk 00:10:41]} {[%emt
00:00:15]} 52. Kb7 {[%clk 00:00:55]} {[%emt 00:02:23]} e4 {[%clk 00:10:24]}
{[%emt 00:00:48]} 53. fxe4 {[%clk 00:01:08]} {[%emt 00:00:16]} fxe4 {[%clk
00:10:52]} {[%emt 00:00:03]} 54. c7 {[%clk 00:00:50]} {[%emt 00:00:46]} e3
{[%clk 00:10:59]} {[%emt 00:00:25]} 55. Rxh2 {[%clk 00:00:54]} {[%emt
00:00:25]} Rxh2 {[%clk 00:11:11]} {[%emt 00:00:18]} 56. c8=Q {[%clk 00:01:15]}
{[%emt 00:00:09]} e2 {[%clk 00:11:36]} {[%emt 00:00:05]} 57. Qc5 {[%clk
00:01:07]} {[%emt 00:00:36]} Kd7 {[%clk 00:11:49]} {[%emt 00:00:20]} 58. Qd4
{[%clk 00:01:15]} {[%emt 00:00:16]} Ke6 {[%clk 00:12:16]} {[%emt 00:00:09]} 59.
Qe3+ {[%clk 00:29:43]} {[%emt 00:02:01]} 1-0

[Event "SS Manhem Chess Week 2022: IM Tournament"]
[Site "Schackcentrum, Vegagatan 20, Gothenburg, Sweden"]
[Date "2022.08.08"]
[Round "4.1"]
[White "Rydstrom, Tom"]
[Black "Pantzar, Milton"]
[Result "0-1"]
[TimeControl "90 minutes for 40 moves + 30 minutes for the rest of the game + 30 seconds per move from move one."]
[WhiteTitle "FM"]
[BlackTitle "IM"]
[WhiteFideId "1714830"]
[BlackFideId "1721003"]
[WhiteElo "2304"]
[BlackElo "2447"]

1. e4 {[%clk 01:30:59]} {[%emt 00:00:01]} e5 {[%clk 01:30:49]} {[%emt
00:00:11]} 2. Nf3 {[%clk 01:31:13]} {[%emt 00:00:16]} d6 {[%clk 01:31:02]}
{[%emt 00:00:17]} 3. Nc3 {[%clk 01:30:37]} {[%emt 00:01:06]} Nf6 {[%clk
01:30:24]} {[%emt 00:01:09]} 4. d4 {[%clk 01:29:58]} {[%emt 00:01:08]} exd4
{[%clk 01:30:37]} {[%emt 00:00:16]} 5. Qxd4 {[%clk 01:26:22]} {[%emt 00:04:07]}
Nc6 {[%clk 01:30:25]} {[%emt 00:00:41]} 6. Bb5 {[%clk 01:25:50]} {[%emt
00:01:03]} Be7 {[%clk 01:29:48]} {[%emt 00:01:08]} 7. O-O {[%clk 01:22:56]}
{[%emt 00:03:23]} O-O {[%clk 01:29:17]} {[%emt 00:01:01]} 8. Bxc6 {[%clk
01:20:49]} {[%emt 00:02:37]} bxc6 {[%clk 01:29:38]} {[%emt 00:00:09]} 9. Bf4
{[%clk 01:18:38]} {[%emt 00:02:41]} Bg4 {[%clk 01:22:00]} {[%emt 00:08:08]} 10.
Qd3 {[%clk 01:15:12]} {[%emt 00:03:56]} Bxf3 {[%clk 01:15:55]} {[%emt
00:06:36]} 11. Qxf3 {[%clk 01:15:36]} {[%emt 00:00:05]} Nd7 {[%clk 01:16:03]}
{[%emt 00:00:21]} 12. Rad1 {[%clk 01:14:47]} {[%emt 00:01:19]} Bf6 {[%clk
01:15:41]} {[%emt 00:00:53]} 13. b3 {[%clk 01:11:57]} {[%emt 00:03:21]} Re8
{[%clk 01:13:07]} {[%emt 00:03:04]} 14. Rfe1 {[%clk 01:12:01]} {[%emt
00:00:25]} Ne5 {[%clk 01:08:17]} {[%emt 00:05:20]} 15. Bxe5 {[%clk 01:07:07]}
{[%emt 00:05:24]} Rxe5 {[%clk 01:05:05]} {[%emt 00:03:42]} 16. Qd3 {[%clk
00:47:08]} {[%emt 00:20:29]} Qe7 {[%clk 00:59:35]} {[%emt 00:06:00]} 17. f4
{[%clk 00:38:13]} {[%emt 00:09:25]} Re6 {[%clk 00:58:16]} {[%emt 00:01:49]} 18.
Nb1 {[%clk 00:33:51]} {[%emt 00:04:52]} Re8 {[%clk 00:53:52]} {[%emt 00:04:54]}
19. Nd2 {[%clk 00:34:07]} {[%emt 00:00:14]} g6 {[%clk 00:53:51]} {[%emt
00:00:31]} 20. Rf1 {[%clk 00:24:53]} {[%emt 00:09:44]} c5 {[%clk 00:43:17]}
{[%emt 00:11:05]} 21. Rf3 {[%clk 00:20:34]} {[%emt 00:04:49]} Qd7 {[%clk
00:23:24]} {[%emt 00:20:22]} 22. Rdf1 {[%clk 00:19:11]} {[%emt 00:01:53]} Bd4+
{[%clk 00:22:16]} {[%emt 00:01:38]} 23. Kh1 {[%clk 00:19:36]} {[%emt 00:00:05]}
f5 {[%clk 00:21:49]} {[%emt 00:00:57]} 24. exf5 {[%clk 00:15:47]} {[%emt
00:04:19]} Re3 {[%clk 00:22:10]} {[%emt 00:00:09]} 25. Rxe3 {[%clk 00:14:36]}
{[%emt 00:01:41]} Rxe3 {[%clk 00:22:31]} {[%emt 00:00:09]} 26. Qa6 {[%clk
00:13:17]} {[%emt 00:01:49]} Qxf5 {[%clk 00:19:42]} {[%emt 00:03:19]} 27. Nf3
{[%clk 00:13:01]} {[%emt 00:00:46]} Bf6 {[%clk 00:13:47]} {[%emt 00:06:25]} 28.
Qxa7 {[%clk 00:09:31]} {[%emt 00:04:01]} Re7 {[%clk 00:14:06]} {[%emt
00:00:10]} 29. a4 {[%clk 00:06:47]} {[%emt 00:03:14]} Qxc2 {[%clk 00:12:16]}
{[%emt 00:02:19]} 30. a5 {[%clk 00:07:06]} {[%emt 00:00:12]} Qxb3 {[%clk
00:10:20]} {[%emt 00:02:26]} 31. h4 {[%clk 00:04:55]} {[%emt 00:02:39]} Qb5
{[%clk 00:07:56]} {[%emt 00:02:54]} 32. Rf2 {[%clk 00:01:37]} {[%emt 00:03:49]}
Qc6 {[%clk 00:06:59]} {[%emt 00:01:27]} 33. a6 {[%clk 00:00:32]} {[%emt
00:01:36]} Re8 {[%clk 00:06:14]} {[%emt 00:01:14]} 34. Ra2 {[%clk 00:00:35]}
{[%emt 00:00:27]} Kf7 {[%clk 00:05:25]} {[%emt 00:01:19]} 35. Nd2 {[%emt
00:00:34]} Ra8 {[%clk 00:04:15]} {[%emt 00:01:40]} 36. Qb7 {[%clk 00:00:52]}
{[%emt 00:00:09]} Qxb7 {[%clk 00:04:38]} {[%emt 00:00:07]} 37. axb7 {[%clk
00:01:15]} {[%emt 00:00:07]} Rb8 {[%clk 00:05:00]} {[%emt 00:00:07]} 38. Ra7
{[%clk 00:01:44]} {[%emt 00:00:01]} Bxh4 {[%clk 00:03:38]} {[%emt 00:01:52]} 39.
Nc4 {[%clk 00:00:57]} {[%emt 00:01:17]} Be1 {[%clk 00:03:42]} {[%emt 00:00:26]}
40. g4 {[%clk 00:00:47]} {[%emt 00:00:40]} Ke6 {[%clk 00:02:44]} {[%emt
00:01:27]} 41. Ne3 {[%clk 00:26:20]} {[%emt 00:04:57]} Bc3 {[%clk 00:23:57]}
{[%emt 00:09:16]} 42. f5+ {[%clk 00:25:58]} {[%emt 00:00:54]} gxf5 {[%clk
00:19:38]} {[%emt 00:04:49]} 43. gxf5+ {[%clk 00:26:26]} {[%emt 00:00:02]} Kd7
{[%clk 00:19:47]} {[%emt 00:00:20]} 44. Nd5 {[%clk 00:24:48]} {[%emt 00:02:09]}
Be5 {[%clk 00:16:09]} {[%emt 00:04:08]} 45. f6 {[%clk 00:23:11]} {[%emt
00:02:07]} Bxf6 {[%clk 00:15:37]} {[%emt 00:01:02]} 46. Nxf6+ {[%clk 00:23:40]}
Kc6 {[%clk 00:15:57]} {[%emt 00:00:10]} 47. Nxh7 {[%clk 00:23:44]} {[%emt
00:00:24]} Rxb7 {[%clk 00:15:44]} {[%emt 00:00:44]} 48. Rxb7 {[%clk 00:23:33]}
{[%emt 00:00:41]} Kxb7 {[%clk 00:16:12]} {[%emt 00:00:02]} 49. Kg2 {[%clk
00:23:56]} {[%emt 00:00:07]} Kc6 {[%clk 00:14:01]} {[%emt 00:02:42]} 50. Kf2
{[%clk 00:23:02]} {[%emt 00:01:24]} Kb5 {[%clk 00:12:31]} {[%emt 00:02:00]} 51.
Ke2 {[%clk 00:22:47]} {[%emt 00:00:45]} Kb4 {[%clk 00:11:36]} {[%emt 00:01:25]}
52. Kd2 {[%clk 00:22:28]} {[%emt 00:00:49]} Kb3 {[%clk 00:10:10]} {[%emt
00:01:56]} 53. Nf6 {[%clk 00:16:50]} {[%emt 00:06:07]} c4 {[%clk 00:09:09]}
{[%emt 00:01:32]} 54. Ne4 {[%clk 00:09:50]} {[%emt 00:07:30]} Kb2 {[%clk
00:06:40]} {[%emt 00:02:59]} 55. Nc3 {[%clk 00:09:43]} {[%emt 00:00:37]} c6
{[%clk 00:06:50]} {[%emt 00:00:20]} 56. Nd1+ {[%clk 00:05:21]} {[%emt
00:04:52]} Kb3 {[%clk 00:07:13]} {[%emt 00:00:07]} 57. Nc3 {[%clk 00:01:19]}
{[%emt 00:04:32]} d5 {[%clk 00:06:57]} {[%emt 00:00:47]} 58. Ne2 {[%clk
00:01:17]} {[%emt 00:00:32]} c5 {[%clk 00:03:32]} {[%emt 00:03:55]} 59. Nc3
{[%clk 00:00:54]} {[%emt 00:00:52]} d4 {[%clk 00:04:00]} {[%emt 00:00:02]} 60.
Ne4 {[%clk 00:00:58]} {[%emt 00:00:26]} c3+ {[%clk 00:03:12]} {[%emt 00:01:18]}
61. Kc1 {[%clk 00:01:08]} {[%emt 00:00:20]} Kb4 {[%clk 00:02:37]} {[%emt
00:01:05]} 62. Kc2 {[%clk 00:01:19]} {[%emt 00:00:19]} c4 {[%clk 00:03:01]}
{[%emt 00:00:06]} 63. Kc1 {[%clk 00:00:50]} {[%emt 00:00:59]} d3 {[%clk
00:03:15]} {[%emt 00:00:15]} 64. Kb1 {[%clk 00:01:03]} {[%emt 00:00:16]} Kb3
{[%clk 00:01:34]} {[%emt 00:02:12]} 65. Nc5+ {[%clk 00:01:25]} {[%emt
00:00:09]} Kb4 {[%clk 00:01:04]} {[%emt 00:01:00]} 66. Ne4 {[%clk 00:01:53]}
{[%emt 00:00:01]} c2+ {[%clk 00:01:23]} {[%emt 00:00:10]} 67. Kc1 {[%clk
00:02:08]} {[%emt 00:00:15]} Kb3 {[%clk 00:01:30]} {[%emt 00:00:24]} 68. Nc5+
{[%clk 00:01:29]} {[%emt 00:01:09]} Kc3 {[%clk 00:01:50]} {[%emt 00:00:11]} 69.
Ne4+ {[%clk 00:00:41]} {[%emt 00:01:17]} Kd4 {[%clk 00:02:08]} {[%emt
00:00:12]} 70. Nd2 {[%clk 00:00:34]} {[%emt 00:00:36]} Kd5 {[%clk 00:01:56]}
{[%emt 00:00:42]} 71. Nf1 {[%clk 00:00:42]} {[%emt 00:00:22]} Ke4 {[%clk
00:02:03]} {[%emt 00:00:24]} 72. Nd2+ {[%clk 00:01:07]} {[%emt 00:00:05]} Kd4
{[%clk 00:02:29]} {[%emt 00:00:04]} 73. Nf3+ {[%clk 00:00:55]} {[%emt
00:00:41]} Ke3 {[%clk 00:02:44]} {[%emt 00:00:15]} 74. Nd2 {[%clk 00:00:33]}
{[%emt 00:00:52]} c3 {[%clk 00:02:32]} {[%emt 00:00:42]} 75. Nf1+ {[%clk
00:00:34]} {[%emt 00:00:29]} Kf2 {[%clk 00:02:06]} {[%emt 00:00:56]} 0-1

[Event "SS Manhem Chess Week 2022: IM Tournament"]
[Site "Schackcentrum, Vegagatan 20, Gothenburg, Sweden"]
[Date "2022.08.08"]
[Round "4.2"]
[White "Johnson, Daniel"]
[Black "Heimisson, Hilmir Freyr"]
[Result "1-0"]
[TimeControl "90 minutes for 40 moves + 30 minutes for the rest of the game + 30 seconds per move from move one."]
[BlackTitle "IM"]
[WhiteFideId "1721283"]
[BlackFideId "2309998"]
[WhiteElo "2207"]
[BlackElo "2323"]

1. d4 {[%clk 01:30:41]} {[%emt 00:00:19]} d5 {[%clk 01:28:38]} {[%emt
00:02:22]} 2. c4 {[%clk 01:30:21]} {[%emt 00:00:50]} e6 {[%clk 01:29:02]}
{[%emt 00:00:06]} 3. Nc3 {[%clk 01:30:41]} {[%emt 00:00:10]} c5 {[%clk
01:29:07]} {[%emt 00:00:24]} 4. cxd5 {[%clk 01:28:30]} {[%emt 00:02:41]} exd5
{[%clk 01:28:26]} {[%emt 00:01:11]} 5. Nf3 {[%clk 01:27:56]} {[%emt 00:01:04]}
Nf6 {[%clk 01:28:47]} {[%emt 00:00:09]} 6. g3 {[%clk 01:27:22]} {[%emt
00:01:04]} Nc6 {[%clk 01:29:02]} {[%emt 00:00:15]} 7. Bg2 {[%clk 01:21:55]}
{[%emt 00:05:57]} cxd4 {[%clk 01:29:07]} {[%emt 00:00:26]} 8. Nxd4 {[%clk
01:22:05]} {[%emt 00:00:19]} Bc5 {[%clk 01:29:28]} {[%emt 00:00:07]} 9. Nxc6
{[%clk 01:15:26]} {[%emt 00:07:10]} bxc6 {[%clk 01:29:32]} {[%emt 00:00:26]} 10.
O-O {[%clk 01:15:30]} {[%emt 00:00:25]} O-O {[%clk 01:28:54]} {[%emt 00:01:09]}
11. Na4 {[%clk 01:13:41]} {[%emt 00:02:19]} Bb6 {[%clk 01:29:13]} {[%emt
00:00:11]} 12. b3 {[%clk 01:10:50]} {[%emt 00:03:21]} Re8 {[%clk 01:25:23]}
{[%emt 00:04:20]} 13. Bb2 {[%clk 00:58:40]} {[%emt 00:12:40]} Bg4 {[%clk
01:25:20]} {[%emt 00:00:32]} 14. Re1 {[%clk 00:51:57]} {[%emt 00:07:13]} h5
{[%clk 01:23:42]} {[%emt 00:02:08]} 15. Rc1 {[%clk 00:42:22]} {[%emt 00:10:05]}
Rc8 {[%clk 01:12:34]} {[%emt 00:11:38]} 16. Nxb6 {[%clk 00:26:13]} {[%emt
00:16:40]} axb6 {[%clk 01:12:14]} {[%emt 00:00:50]} 17. h3 {[%clk 00:25:22]}
{[%emt 00:01:20]} Bf5 {[%clk 01:06:21]} {[%emt 00:06:23]} 18. Qd2 {[%clk
00:23:04]} {[%emt 00:02:47]} Ne4 {[%clk 01:00:40]} {[%emt 00:06:11]} 19. Qf4
{[%clk 00:17:46]} {[%emt 00:05:47]} Qd7 {[%clk 00:59:01]} {[%emt 00:02:10]} 20.
g4 {[%clk 00:17:22]} {[%emt 00:00:54]} hxg4 {[%clk 00:51:48]} {[%emt 00:07:44]}
21. hxg4 {[%clk 00:17:36]} {[%emt 00:00:16]} Bg6 {[%clk 00:51:55]} {[%emt
00:00:22]} 22. f3 {[%clk 00:08:27]} {[%emt 00:09:40]} Nc5 {[%clk 00:43:12]}
{[%emt 00:09:13]} 23. Kf2 {[%clk 00:04:09]} {[%emt 00:04:48]} Qe7 {[%clk
00:37:13]} {[%emt 00:06:30]} 24. Qd4 {[%clk 00:02:02]} {[%emt 00:02:37]} f6
{[%clk 00:29:01]} {[%emt 00:08:42]} 25. b4 {[%clk 00:00:34]} {[%emt 00:01:58]}
Na4 {[%clk 00:27:12]} {[%emt 00:02:19]} 26. Ba1 {[%clk 00:00:35]} {[%emt
00:00:29]} Qd7 {[%clk 00:23:02]} {[%emt 00:04:40]} 27. e3 {[%clk 00:00:32]}
{[%emt 00:00:33]} c5 {[%clk 00:21:29]} {[%emt 00:02:02]} 28. bxc5 {[%clk
00:00:31]} {[%emt 00:00:32]} bxc5 {[%clk 00:21:41]} {[%emt 00:00:18]} 29. Qf4
{[%clk 00:00:31]} {[%emt 00:00:30]} Re7 {[%clk 00:15:26]} {[%emt 00:06:45]} 30.
g5 {[%clk 00:00:41]} {[%emt 00:00:20]} fxg5 {[%clk 00:15:46]} {[%emt 00:00:09]}
31. Qxg5 {[%clk 00:00:55]} {[%emt 00:00:16]} Rc6 {[%clk 00:15:55]} {[%emt
00:00:22]} 32. Rh1 {[%clk 00:00:48]} {[%emt 00:00:36]} d4 {[%clk 00:12:32]}
{[%emt 00:03:52]} 33. exd4 {[%clk 00:00:41]} {[%emt 00:00:37]} Rce6 {[%clk
00:12:21]} {[%emt 00:00:41]} 34. Bf1 {[%clk 00:00:41]} {[%emt 00:00:29]} Bf7
{[%clk 00:02:10]} {[%emt 00:10:41]} 35. Bc4 {[%clk 00:00:55]} {[%emt 00:00:16]}
cxd4 {[%clk 00:00:43]} {[%emt 00:01:57]} 36. Rcg1 {[%clk 00:01:16]} {[%emt
00:00:08]} Be8 {[%clk 00:00:33]} {[%emt 00:00:40]} 37. Qh6 {[%clk 00:00:57]}
{[%emt 00:00:50]} 1-0